Cogmind - Beta 15 @@@ ROGUE MODE // 2025.05.28 @ 21:37:34 Player: dorusv Result: Destroyed by EC-GDE(R) with Subdweller Laser Performance ------------- Evolutions (0) 0 Regions Visited (3) 600 Robots Destroyed (12) 60 Value Destroyed (303) 303 Prototype IDs (0) 0 Alien Tech Used (0) 0 Bonus (0) 0 TOTAL SCORE: 963 Bonus ------- None Cogmind --------- Core Integrity 0/250 Matter 300/300 Energy 99/100 System Corruption 1% Temperature Cool (6) Movement Core (100) Ox1 Location -10/Subcaves Parts ------- > --- POWER (1) -------- (None) > --- PROPULSION (2) --- (None) > --- UTILITY (2) ------ Small Storage Unit > --- WEAPON (2) ------- Small Laser > --- INVENTORY (8) ---- Light Ion Engine Small Storage Unit Seismic Detector Scrap Shield Medium Laser Peak State ------------ > --- POWER ------------ Ion Engine > --- PROPULSION ------- Light Treads Light Treads > --- UTILITY ---------- Small Storage Unit Improved Terrain Scanner > --- WEAPON ----------- Small Laser Light Assault Rifle > --- INVENTORY -------- Light Ion Engine Aluminum Leg Aluminum Leg Small Storage Unit Seismic Detector Scrap Shield Medium Laser [Rating: 10] Favorites ----------- Power Ion Engine Engine Ion Engine Propulsion Light Treads Treads Light Treads Leg Aluminum Leg Utility Small Storage Unit Device Improved Terrain Scanner Storage Small Storage Unit Weapon Light Assault Rifle Energy Gun Small Laser Ballistic Gun Light Assault Rifle Build | -11 -10 -10 -10 ------- Run | Yrd Mat Min Sub Slots Evolved . | . . . . Power . | . . . . Propulsion . | . . . . Utility . | . . . . Weapon . | . . . . Parts Attached 9 | 7 . . 2 Power 1 | 1 . . . Engine 1 | 1 . . . Core . | . . . . Reactor . | . . . . Propulsion 4 | 2 . . 2 Treads 2 | 2 . . . Leg 2 | . . . 2 Wheel . | . . . . Hover . | . . . . Flight . | . . . . Utility 2 | 2 . . . Device 1 | 1 . . . Storage 1 | 1 . . . Processor . | . . . . Hackware . | . . . . Protection . | . . . . Artifact . | . . . . Weapon 2 | 2 . . . Energy Gun 1 | 1 . . . Energy Cannon . | . . . . Ballistic Gun 1 | 1 . . . Ballistic Cannon . | . . . . Launcher . | . . . . Special Weapon . | . . . . Impact Weapon . | . . . . Slashing Weapon . | . . . . Piercing Weapon . | . . . . Special Melee Weapon . | . . . . Unidentified Prototypes . | . . . . Parts Lost 6 | . . . 6 Power 1 | . . . 1 Propulsion 3 | . . . 3 Utility 1 | . . . 1 Weapon 1 | . . . 1 Highest Loss Streak 4 | . . . 4 To Critical Strikes . | . . . . Average Backups 7 | 3 8 8 6 Power . | . 1 1 1 Propulsion 2 | 2 2 2 1 Utility 1 | . 2 2 2 Weapon 2 | . 2 3 1 Tool/Special . | . . . . Unused Backups 9 | . 2 . 7 Power 1 | . . . 1 Propulsion 2 | . 2 . . Utility 3 | . . . 3 Weapon 3 | . . . 3 Tool/Special . | . . . . Average Slot Usage (%) 98 | . 100 100 91 Engine 13 | . 14 14 13 Treads 26 | . 28 28 15 Leg 1 | . . . 11 Device 13 | . 14 14 8 Storage 14 | . 14 14 14 Energy Gun 14 | . 14 14 14 Ballistic Gun 13 | . 14 14 13 Peak Build Rating 10 | 9 9 9 10 Average Rating 8 | 5 9 9 8 On Entrance 6 | . 9 9 9 Naked Turns . | . . . . Heaviest Build 13 | 13 13 13 13 Greatest Support 40 | 40 40 40 40 Greatest Overweight (x) 1 | 1 . . 1 Average Overweight (x) . | . . . . Largest Inventory Capacity 8 | 8 8 8 8 Average Capacity 7 | 7 8 8 8 Most Carried 8 | 8 8 8 8 Average Carried 7 | 4 7 8 7 Final Capacity 8 | 8 8 8 8 Final Carried 8 | 8 8 8 6 Class Distribution -------------------- 100% | Mutant Dominant Class ---------------- Mutant | -10/Materials Mutant | -10/Mines Mutant | -10/Subcaves Resources | -11 -10 -10 -10 ----------- Run | Yrd Mat Min Sub Matter Collected 322 | 142 163 17 . Remotely . | . . . . Salvage Created 461 | 109 265 87 . Parts 29 | 7 17 5 . Haulers Intercepted . | . . . . Recyclers Shooed . | . . . . Parts Field Recycled . | . . . . Retrieved Matter . | . . . . Parts Self-Destructed 5 | . . . 5 Prevented . | . . . . Kills | -11 -10 -10 -10 ------- Run | Yrd Mat Min Sub Combat Hostiles Destroyed 7 | . 5 2 . Guns 7 | . 5 2 . Classes Destroyed 4 | 2 2 . . Tunneler 2 | 2 . . . Recycler 1 | 1 . . . Watcher 2 | . 2 . . Grunt 7 | . 5 2 . Best Kill Streak 3 | 3 2 2 . Combat Bots Only 2 | . 2 2 . Max Kills in Single Turn 1 | 1 1 1 . Gunslinging . | . . . . Exploded . | . . . . Melee . | . . . . Uniques/NPCs Destroyed . | . . . . Combat | -11 -10 -10 -10 -------- Run | Yrd Mat Min Sub Hostile Shots Fired 75 | . 26 6 43 Missed 22 | . 6 2 14 Hits 53 | . 20 4 29 Projectile 53 | . 20 4 29 AOE 3 | . . . 3 Critical Strikes 2 | . . . 2 Damage Taken 1015 | . 226 60 729 Core 268 | . 32 30 206 Absorbed by Shields . | . . . . Core Remaining (%) 100 | 100 . . . Volleys Fired 41 | 6 29 6 . Largest 2 | 2 2 2 . Hottest 60 | 60 60 60 . Shots Fired 82 | 12 58 12 . Gun 82 | 12 58 12 . Cannon . | . . . . Launcher . | . . . . Special . | . . . . Kinetic 41 | 6 29 6 . Thermal 41 | 6 29 6 . Explosive . | . . . . Electromagnetic . | . . . . Robot Hit Streak 8 | 5 8 5 . Robot Miss Streak 3 | 1 3 2 . Penetration Max . | . . . . Secondary Targets . | . . . . Shots Hit Robots 52 | 8 37 7 . Core Hits 24 | 4 14 6 . Critical Kills . | . . . . Critical Parts Destroyed . | . . . . Critical Strikes . | . . . . Melee Attacks . | . . . . Impact . | . . . . Slashing . | . . . . Piercing . | . . . . Sneak Attacks . | . . . . Combat Hostiles . | . . . . Follow-up Attacks . | . . . . Damage Inflicted 500 | 79 346 75 . Guns 497 | 79 346 72 . Cannons . | . . . . Explosions . | . . . . Melee . | . . . . Ramming 3 | . . 3 . Kinetic 192 | 22 142 28 . Thermal 305 | 57 204 44 . Explosive . | . . . . Electromagnetic . | . . . . Impact . | . . . . Slashing . | . . . . Piercing . | . . . . Highest Corruption 1 | . 1 1 1 Average Corruption 1 | . 1 1 1 Corruption Purged . | . . . . Corruption Blocked . | . . . . Effects 6 | . 3 3 . Message Errors 2 | . 1 1 . Matter Fused 3 | . 1 2 . Data Loss (minor) 1 | . 1 . . Overload Shots . | . . . . Overflow Damage . | . . . . Projectiles . | . . . . Explosions . | . . . . Melee . | . . . . Knockbacks . | . . . . Impact . | . . . . Kinetic . | . . . . Secondary . | . . . . Self-Inflicted Damage . | . . . . Shots . | . . . . Rammed 1 | . . 1 . Targets Rammed 1 | . . 1 . Kicked . | . . . . Crushed . | . . . . Highest Temperature 126 | 40 126 76 . Average Temperature 37 | 17 39 45 . Received Heat Transfer 318 | . 120 36 162 Siege Activations . | . . . . Martial Activations . | . . . . Shielding Activations . | . . . . Robots Disrupted . | . . . . Combat Hostiles . | . . . . Robots Corrupted . | . . . . Combat Hostiles . | . . . . Parts Fried . | . . . . Impact Corruptions . | . . . . Robots Melted . | . . . . Combat Hostiles . | . . . . Parts Melted . | . . . . Heat Transferred 700 | 125 475 100 . Parts Sabotaged . | . . . . Parts Stolen . | . . . . Parts Stripped . | . . . . Power Chain Reactions . | . . . . Alert | -11 -10 -10 -10 ------- Run | Yrd Mat Min Sub Maximum Alert Level . | . . . . Low Security (%) 100 | 100 100 100 . Level 1 . | . . . . Level 2 . | . . . . Level 3 . | . . . . Level 4 . | . . . . Level 5 . | . . . . High Security . | . . . . Max Security . | . . . . Peak Influence 60 | 10 60 40 . Initial 3 | . . 3 . Average 8 | 1 9 10 . Influence Increases 217 | 15 152 50 . Destroy 0b10 Robot/C 140 | . 100 40 . Destroy 0b10 Robot/NC 25 | 15 10 . . Destroy Leader 44 | . 34 10 . Successful Hack 8 | . 8 . . Influence Decreases 217 | 15 144 48 10 Entered New Map 11 | . . 5 6 Time Decay 206 | 15 144 43 4 Squads Dispatched 3 | . 3 . . Investigation 3 | . 3 . . Extermination . | . . . . Reinforcement . | . . . . Assault . | . . . . Garrison . | . . . . Intercept . | . . . . Searches Triggered . | . . . . Construction Impeded . | . . . . Haulers Reinforced . | . . . . Active Scanning Responses . | . . . . Cargo Convoy Interrupts . | . . . . Stealth | -11 -10 -10 -10 --------- Run | Yrd Mat Min Sub Distress Signals . | . . . . Communications Jammed . | . . . . Distress Signals . | . . . . Times Spotted 30 | . 11 2 17 Peak Tracking Total 7 | . 2 2 7 Tactical Retreats . | . . . . Traps | -11 -10 -10 -10 ------- Run | Yrd Mat Min Sub Traps Triggered . | . . . . Indirectly . | . . . . Trap Hack Attempts . | . . . . Triggered . | . . . . Disarmed . | . . . . Reprogrammed . | . . . . Reused . | . . . . Traps Extracted . | . . . . Installed . | . . . . Triggered . | . . . . Machines | -11 -10 -10 -10 ---------- Run | Yrd Mat Min Sub Machines Disabled . | . . . . Max in Single Turn . | . . . . Machines Repaired . | . . . . Machines Dismantled . | . . . . Machines Sabotaged . | . . . . Overloaded Fab Kills . | . . . . Hacking | -11 -10 -10 -10 --------- Run | Yrd Mat Min Sub Machines Accessed 3 | . 3 . . Terminals 3 | . 3 . . Fabricators . | . . . . Repair Stations . | . . . . Recycling Units . | . . . . Scanalyzers . | . . . . Garrison Access . | . . . . Total Hacks 15 | . 15 . . Successful 6 | . 6 . . Failed 9 | . 9 . . Catastrophic 2 | . 2 . . Database Lockouts . | . . . . Manual . | . . . . Terminals 15 | . 15 . . Fabricators . | . . . . Repair Stations . | . . . . Recycling Units . | . . . . Scanalyzers . | . . . . Garrison Access . | . . . . Terminal Hacks 6 | . 6 . . Record 1 | . 1 . . Robot Analysis 1 | . 1 . . Alert Level 1 | . 1 . . Locate Traps 1 | . 1 . . Dispatch Records 1 | . 1 . . Assault Status 1 | . 1 . . Fabricator Hacks . | . . . . Repair Station Hacks . | . . . . Recycling Unit Hacks . | . . . . Scanalyzer . | . . . . Garrison Access Hacks . | . . . . Unauthorized Hacks . | . . . . Terminals . | . . . . Fabricators . | . . . . Repair Stations . | . . . . Recycling Units . | . . . . Scanalyzers . | . . . . Garrison Access . | . . . . Data Cores Recovered . | . . . . Used . | . . . . Hacking Detections 3 | . 3 . . Full Trace Events 3 | . 3 . . Feedback Events 1 | . 1 . . Corruption 1 | . 1 . . Feedback Blocked . | . . . . Robot Schematics Acquired . | . . . . Robots Built . | . . . . Authchips . | . . . . Time . | . . . . Total Robot Build Rating . | . . . . Part Schematics Acquired . | . . . . Parts Built . | . . . . Authchips . | . . . . Time . | . . . . Total Part Build Rating . | . . . . Parts Repaired . | . . . . Time . | . . . . Parts Recycled . | . . . . Recycled Matter . | . . . . Retrieved Matter . | . . . . Retrieved Components . | . . . . Parts Scanalyzed . | . . . . Part Schematics Acquired . | . . . . Parts Damaged . | . . . . Bothacking | -11 -10 -10 -10 ------------ Run | Yrd Mat Min Sub Used RIF Installer . | . . . . Robots Hacked . | . . . . Non-combat . | . . . . Combat . | . . . . Robot Hacks Applied . | . . . . Relay Couplers Released . | . . . . Fabnet Peak Effective % . | . . . . Robots Rewired . | . . . . Allies Hacked . | . . . . Hacks Repelled . | . . . . Allies | -11 -10 -10 -10 -------- Run | Yrd Mat Min Sub Total Allies . | . . . . Largest Group . | . . . . Highest-Rated Group . | . . . . Highest-Rated Ally . | . . . . Total Orders . | . . . . Ally Attacks . | . . . . Total Damage . | . . . . Kills . | . . . . Allies Corrupted . | . . . . Allies Melted . | . . . . Intel | -11 -10 -10 -10 ------- Run | Yrd Mat Min Sub Active Infowar (turns) 1059 | 39 740 184 96 Terrain 1059 | 39 740 184 96 Robot Analysis Total 1 | . 1 . . Derelict Logs Recovered 1 | . . 1 . Drone Launches . | . . . . Drone Recoveries . | . . . . Exploration | -11 -10 -10 -10 ------------- Run | Yrd Mat Min Sub Turns Passed 1251 | 160 740 184 167 Spaces Moved 646 | 85 341 104 116 Core 13 | 11 . . 2 Treads 572 | 74 341 104 53 Legs 61 | . . . 61 Wheels . | . . . . Hover . | . . . . Flight . | . . . . Fastest Speed 50 | 50 160 160 100 Average Speed 154 | 148 160 160 140 Slowest Speed 190 | 160 160 160 190 Overloaded Moves . | . . . . Propulsion Burnouts . | . . . . Robots Hopped . | . . . . Potential Cave-ins . | . . . . Cave-ins Triggered . | . . . . Exploration Rate (%) 18 | 5 44 14 11 Regions Visited 3 Branch Regions 2 Pre-discovered Areas . | . . . . Known Exits Taken . | . . . . Unknown Exits Taken 3 | 1 1 1 . Scrap Searched . | . . . . Spaces Dug . | . . . . Terrain Destroyed . | . . . . Melee . | . . . . Projectile . | . . . . AOE . | . . . . Terrain Rammed . | . . . . Walls Destroyed . | . . . . Machines Disabled . | . . . . Actions | -11 -10 -10 -10 --------- Run | Yrd Mat Min Sub Total 821 | 105 484 110 122 Wait 111 | . 111 . . Move 643 | 84 340 103 116 Hop . | . . . . Pick Up 11 | 8 2 . 1 Fast Attach 7 | 7 . . . Attach 2 | . . . 2 Detach . | . . . . Swap . | . . . . Drop 5 | . 2 . 3 Fire 41 | 6 29 6 . Melee . | . . . . Ram . | . . . . Kick . | . . . . Crush 1 | . . 1 . Escape Stasis . | . . . . Rewire . | . . . . Trap . | . . . . Miscellaneous . | . . . . Route ------- -11/Scrapyard -10/Materials -10/Mines (discovered 2 exits: [*Mat] / [*Sub]) -10/Subcaves (discovered 1 exit: [*Mat]) History --------- Turn | Location | Event 58 | -11/Scrapyard | Discovered new exit (range 15) 161 | -11/Scrapyard | Entered Materials 314 | -10/Materials | Build established: Mutant 599 | -10/Materials | Discovered new exit (range 15) 901 | -10/Materials | Entered Mines 993 | -10/Mines | Discovered new exit (range 5) 1038 | -10/Mines | Discovered new exit (range 6) 1085 | -10/Mines | Entered Subcaves 1085 | -10/Subcaves | Discovered new exit (range 9) 1163 | -10/Subcaves | Ambushed by swarm of Subdwellers 1166 | -10/Subcaves | Ambushed by Subdwellers from Twisted Machinery 1167 | -10/Subcaves | Ambushed by Subdweller buried in earth 1176 | -10/Subcaves | Ambushed by Subdweller buried in earth 1176 | -10/Subcaves | Ambushed by Subdweller buried in earth 1194 | -10/Subcaves | Core integrity fell below 50% 1197 | -10/Subcaves | Disturbed a concealed Subdweller 1205 | -10/Subcaves | A Subdweller sparked back to life 1205 | -10/Subcaves | A Subdweller sparked back to life 1205 | -10/Subcaves | A Subdweller sparked back to life 1216 | -10/Subcaves | Lost 3 allies 1239 | -10/Subcaves | Core integrity fell below 20% 1252 | -10/Subcaves | Destroyed by EC-GDE(R) with Subdweller Laser Last Messages --------------- 01177_ K4-V17(R): "ARGHSUB!" 01177_ Z6-UAK(R): "HIDIE!" 01178_ N9-W8W(R) suffers critical hit (Burn). 01179_ N9-W8W(R) heat short circuits Disposable Heat Sink. 01180_ N9-W8W(R) heat spikes uncontrollably. 01180_ N9-W8W(R) overheating. 01180_ N9-W8W(R) destroyed. 01181_ Imp. Terrain Scanner destroyed. 01184_ T0-54O(R) destroyed. 01184_ 69-FUD(R) affixes Scrap Shield Fragment to Scrap Shield. 01193_ Z6-UAK(R) affixes Scrap Shield Fragment to Scrap Shield. 01197_ HK-L4P(R) angrily emerges from the Twisted Machinery. 01198_ HK-L4P(R): "GOTOSCRAP!" 01205_ FW-16I(R) creaks and sparks as it begins to move. 01205_ B5-MGL(R) creaks and sparks as it begins to move. 01205_ Z6-S8C(R) creaks and sparks as it begins to move. 01242_ Aluminum Leg destroyed. 01246_ Lgt. Assault Rifle destroyed. 01249_ Ion Engine destroyed. 01250_ Aluminum Leg destroyed. Map ----- +----------------------------------------------------+ | ??????????????????????????????????????????????? | | ??????????????????????????????????????????????? | | ??????????????????????????????????????????????? | | ??????????????????????????????????????????????? | | ??????????????????????????????????????????????? | | ??????????????????????????????????????????????? | | ??????????????????????????????????????????????? | | ??????????????????????????????????????????????? | | ??????????????????????????????????????????????? | | ??????????????????????????????????????????????? | | ???????????????????????# #????????????????????? | | ??????????????????????? ????????????????????? | | ??????????????????????? ????????????????????? | | ??????????????????????? ????????????????????? | | ???????????????????????# ##??????????????????? | | ???????????????????????# ##?????????????????? | | ???????????????????????# ##????????????????? | | ???????????????????????# ##???????????????? | | ???????????????????????# ##??????????????? | | ???????????????????????? #??????????????? | | ???????????????????????? #??????????????? | | ???????????????????????? R #??????????????? | | ???????????????????????? #??????????????? | | ????????????????????????# R #??????????????? | | ????????????????????????# #???????????????? | | ???????????????????????##@ ##??????????????? | | ???????????????????????# #??????????????? | | ???????????????????????# # #??????????????? | | ???????????????????????# ## #??????????????? | | ??????????????????????## ##? ##??????????????? | | ???????####???????????# #? ##???????????????? | | ???????# ???????####R ## #???????????????? | | ??????## ??????## # # #???????????????? | | ??????# ????## ##???????????????? | | ??????# ##### ## #???????????????? | | ???????# # ##??#???????????????? | | ???????# ######???????????????????? | | ???????# ## ####?????????????????????? | | ???????# ###### ##????????????????????? | | ???????# # ##???????????????????? | | ???????## #???????????????????? | | ????????##"""## #???????????????????? | | ?????????##""?# ## #???????????????????? | | ???""""#??# ### #???????????????????? | | ??#"""""### ##### #### #???????????????????? | | ??#" # ?#"$"## #?# #???????????????????? | | ??# # ?#""$"# ### ##???????????????????? | | ### #&$" # "### #???????????????????? | | | # ##& "" #####????????????????? | | # #????????????????? | +----------------------------------------------------+ Best States ------------- Heat Dissipation 25 Energy Generation 10 Energy Capacity 250 Matter Stores 300 Matter Capacity 300 Sight Range 16 Terrain Scan Range 16 Terrain Scan Density 10 Evasion (%) 55 Recoil Reduction 2 Item Schematics ----------------- None Robot Schematics ------------------ None Fabricated ------------ Nothing Repaired ---------- Nothing Alien Tech Used ----------------- None Achievements -------------- None Challenges ------------ None Game ------ Seed TeleporterTowerImmobilizer Manual? 0 Play Time 00:12:59 Cumulative 10.0 hours Start 2025.05.27 @ 20:57:01 End 2025.05.28 @ 21:37:34 Sessions 3 Manual Loads 0 Difficulty Rogue Special Mode None Game No. 36 Rogue 33 Adventurer 3 Explorer 0 Win Type - Total 0 Types 0/0/0/0/0/0/0/0/0/0 Lore% 10 Gallery% 15 Achievement% 17 Wizard Run 0 Options --------- Layout 0 ASCII 0 Keyboard 1 Movement Arrows Keybinds 0 Fullscreen 2 Font 24/Smallcaps Map View 183x50 Zoom Use 7% Tactical HUD 1 Map Filters NONE Filters NONE Steam 1 RUN: be6f2768-7429-4f0d-9bcd-d5dc6f1b38ba